[Event "Titled Tuesday Blitz May 16 Late 2023"]
[White "Wagner, Dennis"]
[Black "cristianserban1"]
[WhiteFideId "24650684"]
[WhiteElo "2478"]
[BlackElo "2520"]
[Result "1-0"]
[Round "11"]
[TimeControl "180+2"]
[Date "2023.05.16"]
[WhiteClock "0:00:19"]
[BlackClock "0:00:01"]

1. e4 {[%clk 0:03:00]}  c6 {[%clk 0:02:57]} 2. d4 {[%clk 0:03:00]}  d5 {[%clk 0:02:58]} 3. exd5 {[%clk 0:03:01]}  cxd5 {[%clk 0:02:57]} 4. Bd3 {[%clk 0:03:01]}  Nc6 {[%clk 0:02:57]} 5. c3 {[%clk 0:03:02]}  Nf6 {[%clk 0:02:57]} 6. Bf4 {[%clk 0:03:00]}  Bg4 {[%clk 0:02:57]} 7. Nf3 {[%clk 0:02:57]}  e6 {[%clk 0:02:56]} 8. Nbd2 {[%clk 0:02:56]}  Bd6 {[%clk 0:02:56]} 9. Bxd6 {[%clk 0:02:55]}  Qxd6 {[%clk 0:02:57]} 10. O-O {[%clk 0:02:55]}  O-O {[%clk 0:02:54]} 11. Re1 {[%clk 0:02:54]}  Ne7 {[%clk 0:02:48]} 12. h3 {[%clk 0:02:50]}  Bf5 {[%clk 0:02:48]} 13. Bf1 {[%clk 0:02:48]}  b5 {[%clk 0:02:38]} 14. a3 {[%clk 0:02:10]}  Rab8 {[%clk 0:02:37]} 15. Ne5 {[%clk 0:02:07]}  Nc6 {[%clk 0:02:17]} 16. Nb3 {[%clk 0:01:56]}  Ne4 {[%clk 0:02:13]} 17. Bd3 {[%clk 0:01:37]}  Nxe5 {[%clk 0:02:06]} 18. dxe5 {[%clk 0:01:36]}  Qb6 {[%clk 0:01:54]} 19. Nd4 {[%clk 0:01:36]}  Bg6 {[%clk 0:01:52]} 20. Bxe4 {[%clk 0:01:28]}  Bxe4 {[%clk 0:01:51]} 21. Qg4 {[%clk 0:01:13]}  Rfc8 {[%clk 0:01:47]} 22. Re3 {[%clk 0:01:10]}  a5 {[%clk 0:01:45]} 23. h4 {[%clk 0:01:06]}  Qc7 {[%clk 0:01:04]} 24. f3 {[%clk 0:00:53]}  Bf5 {[%clk 0:00:44]} 25. Nxf5 {[%clk 0:00:51]}  exf5 {[%clk 0:00:44]} 26. Qxf5 {[%clk 0:00:52]}  Qc5 {[%clk 0:00:43]} 27. Re1 {[%clk 0:00:47]}  b4 {[%clk 0:00:42]} 28. axb4 {[%clk 0:00:47]}  axb4 {[%clk 0:00:43]} 29. e6 {[%clk 0:00:45]}  fxe6 {[%clk 0:00:27]} 30. Qxe6+ {[%clk 0:00:46]}  Kh8 {[%clk 0:00:28]} 31. cxb4 {[%clk 0:00:46]}  Qd4 {[%clk 0:00:17]} 32. Qe5 {[%clk 0:00:25]}  Qxh4 {[%clk 0:00:01]} 33. Qe8+ {[%clk 0:00:19]} 1-0


[Site "https://www.chess.com"]

[Event "Titled Tuesday Blitz May 16 Late 2023"]
[White "Mickiewicz, Piotr"]
[Black "Adla, Diego"]
[WhiteFideId "1114891"]
[BlackFideId "100072"]
[WhiteElo "2246"]
[BlackElo "2377"]
[Result "0-1"]
[Round "11"]
[TimeControl "180+2"]
[Date "2023.05.16"]
[WhiteClock "0:00:04"]
[BlackClock "0:01:31"]

1. c4 {[%clk 0:03:00]}  e6 {[%clk 0:02:56]} 2. g3 {[%clk 0:02:59]}  d5 {[%clk 0:02:56]} 3. Bg2 {[%clk 0:03:00]}  dxc4 {[%clk 0:02:56]} 4. Qa4+ {[%clk 0:02:58]}  Nd7 {[%clk 0:02:54]} 5. Nf3 {[%clk 0:02:56]}  a6 {[%clk 0:02:55]} 6. Qxc4 {[%clk 0:02:54]}  b5 {[%clk 0:02:55]} 7. Qc2 {[%clk 0:02:54]}  Bb7 {[%clk 0:02:56]} 8. b3 {[%clk 0:02:53]}  c5 {[%clk 0:02:55]} 9. Bb2 {[%clk 0:02:53]}  Ngf6 {[%clk 0:02:55]} 10. d3 {[%clk 0:02:52]}  Be7 {[%clk 0:02:55]} 11. Nbd2 {[%clk 0:02:52]}  O-O {[%clk 0:02:55]} 12. O-O {[%clk 0:02:50]}  Qb6 {[%clk 0:02:53]} 13. a4 {[%clk 0:02:46]}  Rac8 {[%clk 0:02:50]} 14. a5 {[%clk 0:02:36]}  Qa7 {[%clk 0:02:46]} 15. Rac1 {[%clk 0:02:33]}  Rfd8 {[%clk 0:02:45]} 16. Qb1 {[%clk 0:02:33]}  Nd5 {[%clk 0:02:44]} 17. Qa1 {[%clk 0:02:31]}  Bf6 {[%clk 0:02:44]} 18. Ne4 {[%clk 0:02:27]}  Bxb2 {[%clk 0:02:43]} 19. Qxb2 {[%clk 0:02:28]}  N7f6 {[%clk 0:02:42]} 20. Qe5 {[%clk 0:02:03]}  Nxe4 {[%clk 0:02:36]} 21. dxe4 {[%clk 0:02:03]}  Nf6 {[%clk 0:02:36]} 22. Ng5 {[%clk 0:01:23]}  h6 {[%clk 0:02:35]} 23. Nh3 {[%clk 0:01:22]}  c4 {[%clk 0:02:35]} 24. b4 {[%clk 0:01:18]}  Qb8 {[%clk 0:02:33]} 25. Qxb8 {[%clk 0:01:14]}  Rxb8 {[%clk 0:02:34]} 26. f3 {[%clk 0:01:13]}  Rd2 {[%clk 0:02:33]} 27. Rfe1 {[%clk 0:01:09]}  Rbd8 {[%clk 0:02:33]} 28. Nf2 {[%clk 0:01:01]}  Rb2 {[%clk 0:02:30]} 29. Rb1 {[%clk 0:01:01]}  Rdd2 {[%clk 0:02:30]} 30. Bf1 {[%clk 0:00:58]}  Nd7 {[%clk 0:02:13]} 31. Rec1 {[%clk 0:00:54]}  Nb8 {[%clk 0:02:12]} 32. Nd1 {[%clk 0:00:52]}  Rxb1 {[%clk 0:02:09]} 33. Rxb1 {[%clk 0:00:53]}  Kf8 {[%clk 0:02:01]} 34. Kf2 {[%clk 0:00:53]}  Ke7 {[%clk 0:01:54]} 35. Ke3 {[%clk 0:00:52]}  Rc2 {[%clk 0:01:54]} 36. Rb2 {[%clk 0:00:48]}  Rxb2 {[%clk 0:01:49]} 37. Nxb2 {[%clk 0:00:47]}  Nc6 {[%clk 0:01:50]} 38. Nd1 {[%clk 0:00:12]}  e5 {[%clk 0:01:45]} 39. Nc3 {[%clk 0:00:10]}  Nxb4 {[%clk 0:01:45]} 40. Bh3 {[%clk 0:00:10]}  f6 {[%clk 0:01:43]} 41. Bf5 {[%clk 0:00:08]}  Kd6 {[%clk 0:01:42]} 42. h4 {[%clk 0:00:08]}  Kc5 {[%clk 0:01:42]} 43. h5 {[%clk 0:00:08]}  Nc6 {[%clk 0:01:42]} 44. Kd2 {[%clk 0:00:08]}  Nxa5 {[%clk 0:01:41]} 45. g4 {[%clk 0:00:07]}  Nb3+ {[%clk 0:01:41]} 46. Kc2 {[%clk 0:00:07]}  Nd4+ {[%clk 0:01:41]} 47. Kd2 {[%clk 0:00:07]}  a5 {[%clk 0:01:38]} 48. Nd1 {[%clk 0:00:06]}  b4 {[%clk 0:01:37]} 49. Ne3 {[%clk 0:00:07]}  c3+ {[%clk 0:01:36]} 50. Kd1 {[%clk 0:00:06]}  b3 {[%clk 0:01:35]} 51. Nd5 {[%clk 0:00:04]}  c2+ {[%clk 0:01:31]} 0-1


[Site "https://www.chess.com"]

[Event "Titled Tuesday Blitz May 16 Late 2023"]
[White "Spata, German"]
[Black "Ansh M Shah"]
[WhiteFideId "113026"]
[BlackFideId "25033379"]
[WhiteElo "2260"]
[BlackElo "2084"]
[Result "0-1"]
[Round "11"]
[TimeControl "180+2"]
[Date "2023.05.16"]
[WhiteClock "0:00:00"]
[BlackClock "0:01:24"]

1. e4 {[%clk 0:02:53]}  c6 {[%clk 0:03:00]} 2. d3 {[%clk 0:02:53]}  d5 {[%clk 0:03:01]} 3. Nd2 {[%clk 0:02:53]}  e5 {[%clk 0:03:00]} 4. Ngf3 {[%clk 0:02:53]}  Bd6 {[%clk 0:03:00]} 5. Be2 {[%clk 0:02:50]}  Nf6 {[%clk 0:03:00]} 6. O-O {[%clk 0:02:50]}  O-O {[%clk 0:03:00]} 7. c3 {[%clk 0:02:51]}  Re8 {[%clk 0:02:58]} 8. b3 {[%clk 0:02:51]}  a5 {[%clk 0:02:58]} 9. Bb2 {[%clk 0:02:50]}  a4 {[%clk 0:02:58]} 10. bxa4 {[%clk 0:02:50]}  Nbd7 {[%clk 0:02:57]} 11. c4 {[%clk 0:02:41]}  d4 {[%clk 0:02:57]} 12. Nb3 {[%clk 0:02:39]}  Nc5 {[%clk 0:02:54]} 13. Nxc5 {[%clk 0:02:35]}  Bxc5 {[%clk 0:02:55]} 14. Qc2 {[%clk 0:02:29]}  Qa5 {[%clk 0:02:54]} 15. Bd1 {[%clk 0:02:27]}  Bg4 {[%clk 0:02:51]} 16. Bc1 {[%clk 0:02:23]}  Bxf3 {[%clk 0:02:51]} 17. Bxf3 {[%clk 0:02:16]}  Qxa4 {[%clk 0:02:50]} 18. Bd1 {[%clk 0:02:07]}  Qxc2 {[%clk 0:02:48]} 19. Bxc2 {[%clk 0:02:07]}  Ba3 {[%clk 0:02:47]} 20. Bg5 {[%clk 0:02:00]}  Nd7 {[%clk 0:02:44]} 21. Rab1 {[%clk 0:02:00]}  b6 {[%clk 0:02:41]} 22. Bd1 {[%clk 0:01:54]}  Bc5 {[%clk 0:02:42]} 23. Bb3 {[%clk 0:01:53]}  Nf8 {[%clk 0:02:39]} 24. g3 {[%clk 0:01:51]}  Ne6 {[%clk 0:02:39]} 25. Bd2 {[%clk 0:01:51]}  g5 {[%clk 0:02:30]} 26. Rb2 {[%clk 0:01:47]}  Ra6 {[%clk 0:02:19]} 27. Bd1 {[%clk 0:01:38]}  Bd6 {[%clk 0:02:09]} 28. Bg4 {[%clk 0:01:34]}  Nc5 {[%clk 0:02:09]} 29. Bxg5 {[%clk 0:01:23]}  Nxd3 {[%clk 0:02:08]} 30. Rbb1 {[%clk 0:01:18]}  Nc5 {[%clk 0:02:08]} 31. Bf5 {[%clk 0:01:15]}  Rb8 {[%clk 0:02:05]} 32. Rb2 {[%clk 0:01:12]}  Na4 {[%clk 0:02:02]} 33. Rb3 {[%clk 0:01:08]}  Nc3 {[%clk 0:02:02]} 34. Bd2 {[%clk 0:01:05]}  Ra3 {[%clk 0:01:43]} 35. f4 {[%clk 0:00:34]}  Rxb3 {[%clk 0:01:40]} 36. axb3 {[%clk 0:00:34]}  Ra8 {[%clk 0:01:36]} 37. fxe5 {[%clk 0:00:24]}  Bxe5 {[%clk 0:01:37]} 38. Bf4 {[%clk 0:00:24]}  Bxf4 {[%clk 0:01:32]} 39. gxf4 {[%clk 0:00:25]}  d3 {[%clk 0:01:33]} 40. e5 {[%clk 0:00:16]}  d2 {[%clk 0:01:33]} 41. Bg4 {[%clk 0:00:16]}  Ra3 {[%clk 0:01:27]} 42. Bd1 {[%clk 0:00:15]}  Ra1 {[%clk 0:01:27]} 43. Bc2 {[%clk 0:00:00]}  Rc1 {[%clk 0:01:24]} 0-1


[Site "https://www.chess.com"]

[Event "Titled Tuesday Blitz May 16 Late 2023"]
[White "Mirzoev, Azer"]
[Black "Womacka, Mathias"]
[WhiteFideId "13400304"]
[BlackFideId "4611390"]
[WhiteElo "2525"]
[BlackElo "2377"]
[Result "1-0"]
[Round "11"]
[TimeControl "180+2"]
[Date "2023.05.16"]
[WhiteClock "0:01:43"]
[BlackClock "0:00:07"]

1. e4 {[%clk 0:03:00]}  c5 {[%clk 0:02:59]} 2. Nc3 {[%clk 0:03:01]}  Nc6 {[%clk 0:02:58]} 3. g3 {[%clk 0:03:01]}  g6 {[%clk 0:02:57]} 4. Bg2 {[%clk 0:03:02]}  Bg7 {[%clk 0:02:58]} 5. d3 {[%clk 0:03:03]}  d6 {[%clk 0:02:58]} 6. h4 {[%clk 0:03:03]}  Nf6 {[%clk 0:02:47]} 7. Nge2 {[%clk 0:02:57]}  O-O {[%clk 0:02:42]} 8. Be3 {[%clk 0:02:46]}  Ng4 {[%clk 0:02:40]} 9. Bd2 {[%clk 0:02:43]}  Nd4 {[%clk 0:02:36]} 10. O-O {[%clk 0:02:39]}  Nxe2+ {[%clk 0:02:26]} 11. Qxe2 {[%clk 0:02:37]}  h5 {[%clk 0:02:22]} 12. Rab1 {[%clk 0:02:31]}  Rb8 {[%clk 0:02:19]} 13. a3 {[%clk 0:02:24]}  b5 {[%clk 0:02:18]} 14. b4 {[%clk 0:02:23]}  cxb4 {[%clk 0:01:47]} 15. axb4 {[%clk 0:02:22]}  Be6 {[%clk 0:01:43]} 16. Nd5 {[%clk 0:02:16]}  Rc8 {[%clk 0:01:30]} 17. c4 {[%clk 0:02:09]}  Bd7 {[%clk 0:01:00]} 18. Bg5 {[%clk 0:02:01]}  f6 {[%clk 0:00:55]} 19. Bd2 {[%clk 0:02:00]}  e6 {[%clk 0:00:53]} 20. Ne3 {[%clk 0:01:57]}  Nxe3 {[%clk 0:00:41]} 21. Bxe3 {[%clk 0:01:58]}  Qc7 {[%clk 0:00:31]} 22. c5 {[%clk 0:01:57]}  dxc5 {[%clk 0:00:27]} 23. Bxc5 {[%clk 0:01:58]}  Rfd8 {[%clk 0:00:25]} 24. d4 {[%clk 0:01:57]}  Bc6 {[%clk 0:00:23]} 25. Ra1 {[%clk 0:01:55]}  Ra8 {[%clk 0:00:20]} 26. Ra6 {[%clk 0:01:54]}  Qb7 {[%clk 0:00:19]} 27. Rfa1 {[%clk 0:01:52]}  f5 {[%clk 0:00:15]} 28. Rxa7 {[%clk 0:01:51]}  Rxa7 {[%clk 0:00:15]} 29. Rxa7 {[%clk 0:01:52]}  Qb8 {[%clk 0:00:16]} 30. exf5 {[%clk 0:01:44]}  Bxg2 {[%clk 0:00:07]} 31. Qxe6+ {[%clk 0:01:43]} 1-0


[Site "https://www.chess.com"]

[Event "Titled Tuesday Blitz May 16 Late 2023"]
[White "Karttunen, Mika"]
[Black "Toniutti, Ezio"]
[WhiteFideId "502081"]
[BlackFideId "113034"]
[WhiteElo "2396"]
[BlackElo "2215"]
[Result "1-0"]
[Round "11"]
[TimeControl "180+2"]
[Date "2023.05.16"]
[WhiteClock "0:00:05"]
[BlackClock "0:00:00"]

1. e4 {[%clk 0:03:00]}  e5 {[%clk 0:02:59]} 2. Nf3 {[%clk 0:03:00]}  Nc6 {[%clk 0:02:59]} 3. Bb5 {[%clk 0:02:59]}  a6 {[%clk 0:02:59]} 4. Ba4 {[%clk 0:02:59]}  d6 {[%clk 0:03:00]} 5. c3 {[%clk 0:02:57]}  f5 {[%clk 0:02:59]} 6. d4 {[%clk 0:02:30]}  fxe4 {[%clk 0:02:51]} 7. Ng5 {[%clk 0:02:26]}  exd4 {[%clk 0:02:46]} 8. O-O {[%clk 0:02:21]}  d5 {[%clk 0:02:44]} 9. cxd4 {[%clk 0:02:11]}  Nf6 {[%clk 0:02:41]} 10. f3 {[%clk 0:01:57]}  h6 {[%clk 0:02:35]} 11. fxe4 {[%clk 0:01:53]}  hxg5 {[%clk 0:02:33]} 12. e5 {[%clk 0:01:49]}  Ne4 {[%clk 0:02:29]} 13. Nc3 {[%clk 0:01:36]}  Be6 {[%clk 0:02:26]} 14. Bc2 {[%clk 0:01:30]}  Qd7 {[%clk 0:02:17]} 15. Bxe4 {[%clk 0:01:08]}  dxe4 {[%clk 0:02:16]} 16. d5 {[%clk 0:01:08]}  Bc5+ {[%clk 0:01:52]} 17. Kh1 {[%clk 0:01:07]}  O-O-O {[%clk 0:01:51]} 18. Bxg5 {[%clk 0:00:52]}  Bxd5 {[%clk 0:01:30]} 19. Bxd8 {[%clk 0:00:51]}  Rxd8 {[%clk 0:01:29]} 20. Qh5 {[%clk 0:00:40]}  e3 {[%clk 0:00:51]} 21. Rad1 {[%clk 0:00:39]}  Nd4 {[%clk 0:00:50]} 22. Rfe1 {[%clk 0:00:20]}  e2 {[%clk 0:00:30]} 23. Rd2 {[%clk 0:00:20]}  g6 {[%clk 0:00:18]} 24. Qg5 {[%clk 0:00:18]}  Qc6 {[%clk 0:00:16]} 25. Nxd5 {[%clk 0:00:18]}  Qxd5 {[%clk 0:00:16]} 26. h3 {[%clk 0:00:15]}  Rf8 {[%clk 0:00:15]} 27. Rdxe2 {[%clk 0:00:12]}  Nxe2 {[%clk 0:00:15]} 28. Rxe2 {[%clk 0:00:13]}  b6 {[%clk 0:00:15]} 29. Qc1 {[%clk 0:00:12]}  Qe6 {[%clk 0:00:14]} 30. Qb1 {[%clk 0:00:12]}  Rf5 {[%clk 0:00:14]} 31. Qe4 {[%clk 0:00:12]}  Kb8 {[%clk 0:00:12]} 32. g4 {[%clk 0:00:11]}  Rf7 {[%clk 0:00:12]} 33. b3 {[%clk 0:00:11]}  Re7 {[%clk 0:00:12]} 34. Kg2 {[%clk 0:00:11]}  Qd7 {[%clk 0:00:12]} 35. e6 {[%clk 0:00:11]}  Qd6 {[%clk 0:00:12]} 36. Qf3 {[%clk 0:00:11]}  Ka7 {[%clk 0:00:11]} 37. Qe4 {[%clk 0:00:10]}  Qd8 {[%clk 0:00:11]} 38. Qxg6 {[%clk 0:00:10]}  Qd6 {[%clk 0:00:10]} 39. Qe4 {[%clk 0:00:11]}  Bd4 {[%clk 0:00:10]} 40. Qf5 {[%clk 0:00:09]}  c5 {[%clk 0:00:10]} 41. Qe4 {[%clk 0:00:09]}  Qd8 {[%clk 0:00:09]} 42. h4 {[%clk 0:00:09]}  Qg8 {[%clk 0:00:09]} 43. h5 {[%clk 0:00:09]}  Qg5 {[%clk 0:00:08]} 44. Qf5 {[%clk 0:00:07]}  Qh4 {[%clk 0:00:07]} 45. Qf4 {[%clk 0:00:08]}  a5 {[%clk 0:00:05]} 46. Qg3 {[%clk 0:00:08]}  Qg5 {[%clk 0:00:05]} 47. Qf3 {[%clk 0:00:08]}  Bf6 {[%clk 0:00:04]} 48. Qf5 {[%clk 0:00:07]}  Qh4 {[%clk 0:00:04]} 49. Rf2 {[%clk 0:00:07]}  Rg7 {[%clk 0:00:04]} 50. Qxf6 {[%clk 0:00:07]}  Rxg4+ {[%clk 0:00:04]} 51. Kf1 {[%clk 0:00:07]}  Qh1+ {[%clk 0:00:04]} 52. Ke2 {[%clk 0:00:07]}  Re4+ {[%clk 0:00:04]} 53. Kd3 {[%clk 0:00:07]}  Rd4+ {[%clk 0:00:03]} 54. Qxd4 {[%clk 0:00:05]}  cxd4 {[%clk 0:00:02]} 55. e7 {[%clk 0:00:05]}  Qd1+ {[%clk 0:00:02]} 56. Kc4 {[%clk 0:00:04]}  Qc1+ {[%clk 0:00:00]} 57. Kd5 {[%clk 0:00:05]} 1-0


[Site "https://www.chess.com"]

[Event "Titled Tuesday Blitz May 16 Late 2023"]
[White "Silvestre, Christian"]
[Black "Ladan, Nicholas"]
[WhiteFideId "30956269"]
[BlackFideId "30918855"]
[WhiteElo "2362"]
[BlackElo "2167"]
[Result "1/2-1/2"]
[Round "11"]
[TimeControl "180+2"]
[Date "2023.05.16"]
[WhiteClock "0:01:06"]
[BlackClock "0:00:26"]

1. Nf3 {[%clk 0:03:00]}  d5 {[%clk 0:03:00]} 2. g3 {[%clk 0:03:00]}  Bg4 {[%clk 0:02:59]} 3. Bg2 {[%clk 0:03:00]}  e6 {[%clk 0:02:59]} 4. Ne5 {[%clk 0:02:57]}  Bf5 {[%clk 0:02:58]} 5. g4 {[%clk 0:02:56]}  Bg6 {[%clk 0:02:57]} 6. h4 {[%clk 0:02:51]}  Bd6 {[%clk 0:02:48]} 7. d4 {[%clk 0:02:38]}  Bxe5 {[%clk 0:02:38]} 8. dxe5 {[%clk 0:02:37]}  h5 {[%clk 0:02:39]} 9. g5 {[%clk 0:02:34]}  Nd7 {[%clk 0:02:36]} 10. f4 {[%clk 0:02:31]}  Ne7 {[%clk 0:02:36]} 11. c4 {[%clk 0:02:26]}  Bxb1 {[%clk 0:02:29]} 12. Rxb1 {[%clk 0:02:25]}  c6 {[%clk 0:02:22]} 13. Be3 {[%clk 0:02:24]}  Nf5 {[%clk 0:02:20]} 14. Bf2 {[%clk 0:02:23]}  g6 {[%clk 0:02:14]} 15. cxd5 {[%clk 0:02:22]}  cxd5 {[%clk 0:02:08]} 16. e4 {[%clk 0:02:23]}  dxe4 {[%clk 0:02:04]} 17. Bxe4 {[%clk 0:02:23]}  Qa5+ {[%clk 0:01:58]} 18. Qd2 {[%clk 0:02:14]}  Qxd2+ {[%clk 0:01:46]} 19. Kxd2 {[%clk 0:02:13]}  O-O-O {[%clk 0:01:37]} 20. Ke2 {[%clk 0:01:59]}  Kb8 {[%clk 0:01:36]} 21. Rhd1 {[%clk 0:01:56]}  Nb6 {[%clk 0:01:26]} 22. Bxf5 {[%clk 0:01:54]}  gxf5 {[%clk 0:01:24]} 23. Bxb6 {[%clk 0:01:54]}  axb6 {[%clk 0:01:25]} 24. Rxd8+ {[%clk 0:01:53]}  Rxd8 {[%clk 0:01:23]} 25. Rd1 {[%clk 0:01:53]}  Rxd1 {[%clk 0:00:59]} 26. Kxd1 {[%clk 0:01:54]}  Kc7 {[%clk 0:00:59]} 27. Kd2 {[%clk 0:01:52]}  Kc6 {[%clk 0:00:59]} 28. Kd3 {[%clk 0:01:52]}  Kd5 {[%clk 0:00:58]} 29. a4 {[%clk 0:01:50]}  b5 {[%clk 0:00:48]} 30. a5 {[%clk 0:01:32]}  b4 {[%clk 0:00:46]} 31. b3 {[%clk 0:01:15]}  Kc5 {[%clk 0:00:42]} 32. Ke3 {[%clk 0:01:07]}  Kd5 {[%clk 0:00:26]} 33. Kd3 {[%clk 0:01:06]}  Kc5 {[%clk 0:00:26]} 34. Ke3 {[%clk 0:01:06]}  Kd5 {[%clk 0:00:26]} 35. Kd3 {[%clk 0:01:06]} 1/2-1/2


[Site "https://www.chess.com"]

[Event "Titled Tuesday Blitz May 16 Late 2023"]
[White "Ismayil, Malak"]
[Black "Vaglio Munoz, Jaime"]
[WhiteFideId "13412604"]
[BlackFideId "6500145"]
[WhiteElo "1868"]
[BlackElo "2199"]
[Result "0-1"]
[Round "11"]
[TimeControl "180+2"]
[Date "2023.05.16"]
[WhiteClock "0:01:11"]
[BlackClock "0:02:06"]

1. e4 {[%clk 0:03:00]}  e6 {[%clk 0:02:59]} 2. d4 {[%clk 0:03:00]}  d5 {[%clk 0:02:59]} 3. Nd2 {[%clk 0:03:00]}  dxe4 {[%clk 0:03:00]} 4. Nxe4 {[%clk 0:03:00]}  Nf6 {[%clk 0:03:00]} 5. Nxf6+ {[%clk 0:02:57]}  Qxf6 {[%clk 0:03:01]} 6. Nf3 {[%clk 0:02:56]}  h6 {[%clk 0:03:01]} 7. Bd3 {[%clk 0:02:56]}  Nc6 {[%clk 0:03:02]} 8. c3 {[%clk 0:02:53]}  Bd6 {[%clk 0:03:02]} 9. h3 {[%clk 0:02:53]}  O-O {[%clk 0:03:01]} 10. Qe2 {[%clk 0:02:52]}  e5 {[%clk 0:03:00]} 11. Qe4 {[%clk 0:02:47]}  g6 {[%clk 0:02:59]} 12. dxe5 {[%clk 0:02:41]}  Nxe5 {[%clk 0:02:58]} 13. Nxe5 {[%clk 0:02:41]}  Bxe5 {[%clk 0:02:58]} 14. Bxh6 {[%clk 0:02:22]}  Bf5 {[%clk 0:02:56]} 15. Qc4 {[%clk 0:02:16]}  b5 {[%clk 0:02:39]} 16. Qxb5 {[%clk 0:02:09]}  Bxc3+ {[%clk 0:02:31]} 17. bxc3 {[%clk 0:01:40]}  Qxc3+ {[%clk 0:02:30]} 18. Ke2 {[%clk 0:01:41]}  Rfe8+ {[%clk 0:02:10]} 19. Be3 {[%clk 0:01:39]}  Rab8 {[%clk 0:02:10]} 20. Rac1 {[%clk 0:01:23]}  Bxd3+ {[%clk 0:02:06]} 21. Qxd3 {[%clk 0:01:11]}  Rb2+ {[%clk 0:02:06]} 0-1


[Site "https://www.chess.com"]

[Event "Titled Tuesday Blitz May 16 Late 2023"]
[White "Prieto Aranguren, Alain"]
[Black "Hajiyev, Kanan"]
[WhiteFideId "2268906"]
[BlackFideId "13404148"]
[WhiteElo "2209"]
[BlackElo "2103"]
[Result "0-1"]
[Round "11"]
[TimeControl "180+2"]
[Date "2023.05.16"]
[WhiteClock "0:00:44"]
[BlackClock "0:01:05"]

1. e4 {[%clk 0:02:55]}  c6 {[%clk 0:02:53]} 2. d4 {[%clk 0:02:55]}  d5 {[%clk 0:02:54]} 3. exd5 {[%clk 0:02:55]}  cxd5 {[%clk 0:02:55]} 4. Bd3 {[%clk 0:02:55]}  Nc6 {[%clk 0:02:54]} 5. Nf3 {[%clk 0:02:55]}  Qc7 {[%clk 0:02:55]} 6. O-O {[%clk 0:02:54]}  Bg4 {[%clk 0:02:55]} 7. c3 {[%clk 0:02:54]}  e6 {[%clk 0:02:55]} 8. Nbd2 {[%clk 0:02:48]}  Bd6 {[%clk 0:02:54]} 9. Re1 {[%clk 0:02:47]}  Bxh2+ {[%clk 0:02:53]} 10. Kh1 {[%clk 0:02:47]}  Bf4 {[%clk 0:02:51]} 11. Qa4 {[%clk 0:02:41]}  Ne7 {[%clk 0:02:32]} 12. Ne5 {[%clk 0:02:41]}  Bf5 {[%clk 0:02:31]} 13. Bf1 {[%clk 0:02:36]}  O-O {[%clk 0:02:28]} 14. Ndf3 {[%clk 0:02:34]}  Nxe5 {[%clk 0:02:19]} 15. Bxf4 {[%clk 0:02:25]}  Qd7 {[%clk 0:02:10]} 16. Qxd7 {[%clk 0:02:15]}  Nxd7 {[%clk 0:02:10]} 17. Bd6 {[%clk 0:02:09]}  Rfe8 {[%clk 0:02:10]} 18. Nh4 {[%clk 0:02:08]}  Bg4 {[%clk 0:01:59]} 19. f3 {[%clk 0:02:07]}  Bh5 {[%clk 0:01:58]} 20. g4 {[%clk 0:02:08]}  Bg6 {[%clk 0:01:56]} 21. Nxg6 {[%clk 0:02:05]}  Nxg6 {[%clk 0:01:56]} 22. Bg3 {[%clk 0:02:03]}  Nb6 {[%clk 0:01:49]} 23. Bd3 {[%clk 0:02:01]}  Nc4 {[%clk 0:01:49]} 24. b3 {[%clk 0:01:55]}  Na5 {[%clk 0:01:46]} 25. Rac1 {[%clk 0:01:53]}  Rac8 {[%clk 0:01:45]} 26. Kg2 {[%clk 0:01:53]}  a6 {[%clk 0:01:46]} 27. Kf2 {[%clk 0:01:49]}  h6 {[%clk 0:01:43]} 28. Bxg6 {[%clk 0:01:46]}  fxg6 {[%clk 0:01:44]} 29. Be5 {[%clk 0:01:46]}  Nc6 {[%clk 0:01:42]} 30. f4 {[%clk 0:01:46]}  Kf7 {[%clk 0:01:37]} 31. Ke3 {[%clk 0:01:43]}  Nxe5 {[%clk 0:01:24]} 32. fxe5 {[%clk 0:01:42]}  Ke7 {[%clk 0:01:24]} 33. Kd3 {[%clk 0:01:42]}  b5 {[%clk 0:01:23]} 34. Rf1 {[%clk 0:01:42]}  Rf8 {[%clk 0:01:24]} 35. Ra1 {[%clk 0:01:39]}  Rxf1 {[%clk 0:01:23]} 36. Rxf1 {[%clk 0:01:37]}  Rf8 {[%clk 0:01:24]} 37. Rxf8 {[%clk 0:01:23]}  Kxf8 {[%clk 0:01:25]} 38. b4 {[%clk 0:01:04]}  g5 {[%clk 0:01:18]} 39. Ke3 {[%clk 0:00:59]}  Kf7 {[%clk 0:01:18]} 40. Kf3 {[%clk 0:00:58]}  Kg6 {[%clk 0:01:16]} 41. Kg3 {[%clk 0:00:58]}  h5 {[%clk 0:01:12]} 42. Kh3 {[%clk 0:00:55]}  Kh6 {[%clk 0:01:03]} 43. Kg3 {[%clk 0:00:55]}  hxg4 {[%clk 0:01:04]} 44. Kxg4 {[%clk 0:00:55]}  Kg6 {[%clk 0:01:04]} 45. a3 {[%clk 0:00:53]}  Kh6 {[%clk 0:01:04]} 46. Kg3 {[%clk 0:00:51]}  Kh5 {[%clk 0:01:04]} 47. Kh3 {[%clk 0:00:52]}  g4+ {[%clk 0:01:04]} 48. Kg3 {[%clk 0:00:44]}  Kg5 {[%clk 0:01:05]} 0-1


[Site "https://www.chess.com"]